bitfinex-derivatives/quotes_ETHF0:USTF0_20250110
["timestamp","ask_amount","ask_price","bid_price","bid_amount"]
[1736480522285,0.30783,3249.0,3248.8,0.4575]
[1736480523094,3.2078,3249.2,3248.8,0.76534]
[1736480523390,0.30782,3249.1,3248.8,0.76534]
[1736480523692,0.30783,3249.0,3248.8,0.76534]
[1736480525291,0.30783,3249.0,3248.8,0.76535]
[1736480526793,3.2078,3249.2,3248.8,0.76535]
[1736480526987,0.30782,3249.1,3248.8,0.76535]
[1736480528384,0.30783,3249.0,3248.8,0.76535]
[1736480531193,1.92087031,3249.1,3248.7,0.4346]
[1736480531494,0.30785,3248.9,3248.7,0.74245]
[1736480532785,0.30785,3248.8,3248.7,0.4346]
[1736480532987,0.30784,3248.9,3248.7,0.4346]
[1736480534394,0.30784,3248.9,3248.7,0.74245]
[1736480535496,0.4582,3249.1,3248.7,0.4346]
[1736480535790,0.4582,3249.1,3248.6,0.4359]
[1736480535995,0.30786,3248.7,3248.6,0.4359]
[1736480537092,2.37907031,3249.1,3248.6,0.4359]
[1736480537298,0.30784,3248.9,3248.7,0.30785]
[1736480537592,0.30784,3248.9,3248.8,0.456]
[1736480543796,0.30785,3248.8,3248.7,40.8]
[1736480543991,0.4582,3249.1,3248.6,0.4359]
[1736480544197,0.30786,3248.7,3248.6,0.4359]
[1736480544394,0.30785,3248.8,3248.6,0.74376]
[1736480544597,0.30785,3248.8,3248.6,41.54376]
[1736480546001,0.30784,3248.9,3248.7,0.30786]
[1736480546998,3.2078,3249.3,3248.8,3.2078]
[1736480547402,0.4375,3249.7,3248.8,3.2078]
[1736480547596,0.4375,3249.7,3248.7,2.918]
[1736480547597,0.74526,3249.7,3249.4,0.30778]
[1736480547901,0.74526,3249.7,3249.5,0.9143]
[1736480548602,3.2078,3250.0,3249.5,0.9143]
[1736480548906,3.51554,3250.0,3249.7,0.30776]
[1736480550901,0.30774,3250.0,3249.7,0.30776]
[1736480552097,0.4459,3250.1,3249.5,0.9143]
[1736480552413,0.75363,3250.1,3249.8,0.30774]
[1736480553811,3.6762,3250.4,3249.6,3.2078]
[1736480554013,3.9839,3250.4,3250.1,0.30772]
[1736480554209,3.5155,3250.4,3250.2,0.9084]
[1736480554601,3.2078,3250.4,3250.2,0.9084]
[1736480554910,3.2078,3250.4,3250.2,1.21611]
[1736480555608,3.2078,3250.4,3250.3,0.4491]
[1736480555809,3.2078,3250.4,3250.3,0.75681]
[1736480556306,3.2078,3250.4,3250.3,0.4491]
[1736480556511,3.5155,3250.4,3250.3,0.4491]
[1736480556715,3.2078,3250.4,3250.3,0.4491]
[1736480559207,3.5155,3250.4,3250.2,0.9084]
[1736480559811,3.2078,3250.4,3250.2,1.21611]
[1736480561012,3.2078,3250.4,3250.2,0.9084]
[1736480561213,3.2078,3250.4,3249.8,0.4668]
[1736480561417,0.30776,3249.8,3249.6,3.6704]
[1736480562116,3.2078,3250.0,3249.6,0.4626]
[1736480562312,3.2078,3250.0,3249.4,41.2672]
[1736480562313,3.2078,3250.0,3249.4,41.57498]
[1736480562516,1.92087031,3249.6,3249.3,0.4709]
[1736480562715,0.75739,3249.5,3249.3,0.4709]
[1736480562912,0.3078,3249.3,3249.2,44.0078]
[1736480563410,0.9265,3249.5,3249.2,44.0078]
[1736480563616,0.3078,3249.4,3249.2,44.0078]
[1736480563817,0.3078,3249.4,3249.2,3.2078]
[1736480564018,0.3078,3249.3,3249.0,0.4672]
[1736480564227,0.30782,3249.1,3248.9,0.4709]
[1736480564412,0.30782,3249.1,3249.0,40.8]
[1736480564614,3.2078,3249.4,3249.0,40.8]
[1736480564813,0.30781,3249.3,3249.0,41.10782]
[1736480567214,0.30781,3249.3,3249.1,0.30782]
[1736480567823,0.30781,3249.3,3249.0,41.10782]
[1736480572932,3.2078,3249.4,3249.0,40.8]
[1736480573122,0.3078,3249.3,3249.0,40.8]
[1736480573423,0.3078,3249.3,3249.0,41.10782]
[1736480574728,3.2078,3249.4,3249.0,40.8]
[1736480574933,3.2078,3249.4,3249.3,0.3078]
[1736480576022,0.30776,3249.7,3249.0,40.8]
[1736480576231,0.30776,3249.8,3249.5,0.30778]
[1736480576422,0.30776,3249.8,3249.6,0.78217]
[1736480576820,0.30776,3249.7,3249.6,0.4744]
[1736480577025,0.30778,3249.5,3249.3,0.771]
[1736480577225,0.30778,3249.5,3249.3,1.2454]
[1736480577630,0.30778,3249.5,3249.3,0.9376]
[1736480577837,0.30778,3249.5,3249.3,1.2454]
[1736480578923,0.30778,3249.6,3249.3,1.2454]
[1736480579330,2.37647031,3249.9,3249.3,0.9376]
[1736480579535,0.30776,3249.8,3249.5,0.30777]
[1736480580532,0.4556,3249.9,3249.6,0.30777]
[1736480580729,0.30776,3249.8,3249.6,0.30777]
[1736480581834,0.30776,3249.8,3249.5,0.30778]
[1736480582034,0.30776,3249.8,3249.3,0.9376]
[1736480582535,0.76335,3249.9,3249.6,0.30777]
[1736480582736,0.4556,3249.9,3249.6,0.30777]
[1736480583028,0.30775,3249.8,3249.5,0.30778]
[1736480584638,0.30775,3249.8,3249.3,0.9376]
[1736480584838,0.30775,3249.8,3249.6,0.30777]
[1736480585033,0.4556,3249.9,3249.6,0.30777]
[1736480585336,0.30771,3250.3,3250.0,0.30773]
[1736480585533,0.30772,3250.2,3250.1,0.4482]
[1736480587333,3.2078,3250.4,3250.1,0.4482]
[1736480587535,3.5155,3250.4,3250.1,0.75592]
[1736480587840,3.5155,3250.4,3250.1,0.4482]
[1736480588038,0.30771,3250.3,3250.1,0.75592]
[1736480588437,0.30771,3250.2,3250.1,0.4482]
[1736480589240,0.4546,3250.3,3250.1,0.4482]
[1736480589441,0.76231,3250.3,3250.1,0.4482]
[1736480589639,0.30771,3250.2,3250.1,0.4482]
[1736480590237,0.4546,3250.3,3250.1,0.4482]
[1736480590539,3.2078,3250.4,3250.2,0.30771]
[1736480591441,3.5155,3250.4,3250.1,0.75592]
[1736480592842,3.2078,3250.4,3250.1,0.4482]
[1736480593140,0.30771,3250.3,3250.1,0.4482]
[1736480593842,0.30771,3250.3,3250.1,0.75592]
[1736480594340,0.30771,3250.3,3250.1,0.4482]
[1736480594742,3.2078,3250.4,3249.9,3.2078]
[1736480595042,0.30773,3250.0,3249.7,0.30776]
[1736480595244,0.30774,3250.0,3249.7,0.30776]
[1736480595538,0.30773,3250.1,3249.7,0.30776]
[1736480595744,0.30774,3250.0,3249.7,0.30776]
[1736480595945,0.30774,3249.9,3249.7,0.30776]
[1736480596137,0.30774,3250.0,3249.7,0.30776]
[1736480596545,0.30774,3250.0,3249.8,0.30775]
[1736480596741,0.30774,3250.0,3249.7,0.30776]
[1736480598545,3.6863,3250.4,3249.6,1.359]
[1736480598745,0.30774,3250.0,3249.6,1.359]
[1736480599046,0.30773,3250.1,3249.8,0.30774]
[1736480599247,0.30772,3250.2,3249.9,0.30774]
[1736480599747,0.30772,3250.2,3250.0,0.30773]
[1736480600048,0.30772,3250.2,3249.6,1.359]
[1736480600049,0.30772,3250.2,3250.1,0.458]
[1736480601042,0.30771,3250.3,3250.1,0.458]
[1736480601344,0.30771,3250.3,3250.2,0.4594]
[1736480602043,3.2078,3250.4,3250.1,0.458]
[1736480602044,0.30771,3250.2,3250.1,0.458]
[1736480605349,3.2078,3250.4,3249.8,0.30774]
[1736480605350,0.30774,3250.0,3249.8,0.30774]
[1736480605639,0.30774,3250.0,3249.8,0.74534]
[1736480606041,0.30773,3250.1,3249.8,0.74534]
[1736480606242,0.30773,3250.1,3249.9,0.30774]
[1736480606546,3.2078,3250.4,3249.8,0.4376]
[1736480607148,0.30773,3250.1,3249.9,0.30774]
[1736480607854,0.30773,3250.0,3249.8,0.74535]
[1736480611051,0.30772,3250.2,3250.0,0.30773]
[1736480611256,3.2078,3250.4,3249.8,0.4376]
[1736480611447,0.30773,3250.1,3249.9,0.30774]
[1736480612647,0.30773,3250.1,3249.8,0.74535]
[1736480612841,3.2078,3250.4,3249.8,0.74535]
[1736480613045,0.30773,3250.0,3249.8,0.4376]
[1736480613453,0.30773,3250.0,3249.8,0.74535]
[1736480615449,3.2078,3250.4,3249.8,0.4376]
[1736480615450,1.92087031,3250.2,3249.8,0.4376]
[1736480615654,0.30774,3250.0,3249.8,0.4376]
[1736480618848,0.30774,3249.9,3249.8,0.4376]
[1736480619447,0.30774,3250.0,3249.8,0.4376]
[1736480619852,0.05144813,3249.9,3248.7,3.2078]
[1736480620059,0.30783,3249.0,3248.9,0.9304]
[1736480620258,1.92087031,3249.2,3248.5,0.452]
[1736480620454,0.30786,3248.7,3248.6,0.4704]
[1736480620655,1.92087031,3248.9,3248.4,4.80943529]
[1736480620863,0.30788,3248.5,3248.1,0.30791]
[1736480621168,1.92087031,3248.9,3248.2,41.2704]
[1736480621357,0.30788,3248.5,3248.2,41.2704]
[1736480621756,0.30788,3248.5,3248.2,0.4704]
[1736480623059,0.30788,3248.5,3248.2,0.7783]
[1736480624159,0.30788,3248.5,3248.2,0.4704]
[1736480624365,0.30788,3248.5,3248.2,0.7783]
[1736480624571,0.30788,3248.5,3248.3,0.436]
[1736480625370,1.92087031,3248.9,3248.3,0.436]
[1736480625572,0.30788,3248.5,3248.3,0.436]
[1736480625772,1.92087031,3248.9,3248.2,0.4704]
[1736480625773,0.30789,3248.3,3248.2,0.4704]
[1736480628567,0.4447,3248.4,3248.2,0.4704]
[1736480628770,0.30789,3248.4,3248.2,0.4704]
[1736480629971,3.2078,3248.6,3248.2,0.7783]
[1736480629972,0.30788,3248.5,3248.2,0.7783]
[1736480630274,0.30788,3248.5,3248.3,0.4638]
[1736480632064,0.30789,3248.4,3248.3,0.4638]
[1736480632473,3.2078,3248.6,3248.2,0.4704]
[1736480632474,5.12867031,3248.6,3248.2,0.4704]
[1736480632673,0.30789,3248.3,3248.2,0.4704]
[1736480633075,0.4587,3248.5,3247.8,3.51574]
[1736480633273,0.30792,3248.1,3247.8,3.51574]
[1736480633477,0.30792,3248.1,3247.9,0.4589]
[1736480633666,0.30792,3248.0,3247.9,40.8]
[1736480633978,2.35467031,3248.0,3247.5,0.4745]
[1736480634275,0.74173,3248.0,3247.7,0.30795]
[1736480634671,3.51572,3248.1,3247.6,40.8]
[1736480634877,0.30792,3248.1,3247.8,0.30793]
[1736480635181,0.30792,3248.1,3247.9,0.4703]
[1736480636677,0.30792,3248.1,3248.0,0.459]
[1736480637578,0.3079,3248.3,3248.0,1.23062]
[1736480638886,0.4338,3248.4,3248.0,0.9227]
[1736480639074,0.30791,3248.1,3248.0,0.9227]
[1736480639480,0.4338,3248.4,3247.7,3.2078]
[1736480639779,0.30794,3247.9,3247.7,3.2078]
[1736480640584,0.4338,3248.4,3247.7,3.2078]
[1736480640980,0.30792,3248.0,3247.8,0.30794]
[1736480641385,0.30792,3248.1,3247.9,0.30793]
[1736480641884,0.30792,3248.1,3247.7,3.2078]
[1736480641885,0.30792,3248.1,3248.0,0.4338]
[1736480642684,0.30791,3248.2,3248.0,0.4338]
[1736480642980,0.30791,3248.2,3248.1,0.4467]
[1736480643181,0.30791,3248.2,3248.0,0.4338]
[1736480643483,0.4338,3248.4,3248.0,0.4338]
[1736480643484,0.30791,3248.1,3248.0,0.4338]
[1736480644883,0.4338,3248.4,3248.0,0.4338]
[1736480645089,0.30791,3248.1,3248.0,0.4338]
[1736480648893,3.6416,3248.4,3247.8,0.4457]
[1736480649084,0.30793,3248.0,3247.8,0.4457]
[1736480649488,0.30793,3248.0,3247.8,0.75364]
[1736480650995,0.30793,3248.0,3247.8,0.4457]
[1736480651687,0.30792,3248.0,3247.8,0.75364]
[1736480653292,0.30792,3248.0,3247.8,0.4457]
[1736480653498,0.30792,3248.0,3247.8,0.75364]
[1736480653900,0.30792,3248.0,3247.8,0.4457]
[1736480654091,0.3079,3248.2,3247.8,0.4457]
[1736480654401,0.30793,3247.9,3247.8,0.4457]
[1736480655402,0.30793,3248.0,3247.8,0.75364]
[1736480655699,0.30793,3248.0,3247.8,0.4457]
[1736480656099,1.92087031,3248.3,3247.8,0.4457]
[1736480656401,0.30793,3247.9,3247.8,0.4457]
[1736480656601,0.30793,3248.0,3247.8,0.75364]
[1736480656801,0.30793,3248.0,3247.8,0.4457]
[1736480657794,0.3079,3248.2,3247.8,0.4457]
[1736480657994,0.30793,3248.0,3247.8,0.4457]
[1736480658493,0.30793,3247.9,3247.8,0.4457]
[1736480658890,0.30793,3248.0,3247.8,0.4457]
[1736480659097,0.30793,3248.0,3247.8,0.75364]
[1736480659601,0.30793,3248.0,3247.8,0.4457]
[1736480661698,0.30793,3247.9,3247.8,0.4457]
[1736480661895,1.92087031,3248.0,3247.3,3.2078]
[1736480662204,0.30798,3247.4,3247.3,3.2078]
[1736480664703,1.92087031,3247.6,3247.1,0.8975]
[1736480664898,0.30799,3247.3,3247.1,0.8975]
[1736480665701,0.30799,3247.3,3247.1,1.20551]
[1736480665901,0.30799,3247.3,3247.1,0.8975]
[1736480666800,0.308,3247.2,3247.1,0.8975]
[1736480667001,1.92087031,3247.3,3247.0,40.8]
[1736480667201,0.30801,3247.1,3247.0,40.8]
[1736480667499,0.30803,3246.9,3246.8,0.4508]
[1736480669002,0.30801,3247.1,3246.8,0.75883]
[1736480669595,0.30803,3246.9,3246.8,0.4508]
[1736480671403,1.92087031,3247.0,3246.2,3.2078]
[1736480671600,0.3081,3246.2,3246.0,0.98852723]
[1736480671801,1.92087031,3246.4,3246.0,0.453]
[1736480671802,0.3081,3246.1,3246.0,0.453]
[1736480672394,0.4645,3246.3,3246.0,0.453]
[1736480672600,0.77259,3246.3,3246.0,0.76111]
[1736480673104,0.30806,3246.6,3246.3,0.30808]
[1736480673307,0.30806,3246.6,3246.0,0.453]
[1736480673506,5.12867031,3246.7,3246.2,0.30809]
[1736480673704,5.12867031,3246.7,3246.0,0.453]
[1736480673907,5.12867031,3246.7,3246.0,1.20521]
[1736480674208,0.30809,3246.3,3246.0,1.20521]
[1736480674404,0.3081,3246.2,3246.0,0.8971]
[1736480675008,0.30809,3246.3,3246.0,1.20521]
[1736480675308,0.30809,3246.2,3246.0,0.8971]
[1736480675509,0.4565,3246.6,3246.0,0.8971]
[1736480675812,1.92087031,3246.4,3246.0,0.8971]
[1736480676209,0.3081,3246.1,3246.0,0.8971]
[1736480677313,0.3081,3246.1,3246.0,0.453]
[1736480678206,0.4688,3246.3,3246.0,0.453]
[1736480678509,0.4688,3246.3,3246.0,0.9018]
[1736480678708,0.3081,3246.1,3246.0,0.9018]
[1736480680009,0.30812,3246.0,3245.7,3.51594]
[1736480680210,0.30812,3246.0,3245.8,0.9221]
[1736480680402,0.30812,3246.0,3245.8,41.7221]
[1736480680606,0.3081,3246.2,3245.9,0.30812]
[1736480680809,0.3081,3246.2,3246.0,0.4758]
[1736480681210,1.92087031,3246.4,3246.0,0.4758]
[1736480681513,0.3081,3246.1,3246.0,0.4758]
[1736480684406,0.30807,3246.5,3246.1,0.30809]
[1736480684610,0.4565,3246.6,3246.1,0.30809]
[1736480684807,0.30808,3246.4,3246.1,0.30809]
[1736480685213,0.30808,3246.3,3246.1,0.30809]
[1736480685818,0.30808,3246.4,3246.1,0.30809]
[1736480686317,0.30808,3246.4,3246.0,0.4758]
[1736480686318,0.3081,3246.2,3246.0,0.4758]
[1736480687617,0.3081,3246.2,3246.0,0.78391]
[1736480687919,0.30809,3246.3,3246.1,0.3081]
[1736480688117,0.30809,3246.3,3246.0,0.78391]
[1736480688819,1.92087031,3246.4,3246.0,0.78391]
[1736480689018,0.3081,3246.2,3246.0,0.78391]
[1736480690221,0.3081,3246.2,3246.0,3.99171]
[1736480691922,0.3081,3246.2,3246.0,0.78391]
[1736480692222,0.3081,3246.2,3246.0,3.99171]
[1736480693023,0.30809,3246.3,3246.1,0.3081]
[1736480693315,4.0929,3246.7,3246.0,3.6836]
[1736480693316,5.56717031,3246.7,3246.0,3.6836]
[1736480693514,0.30807,3246.5,3246.0,3.6836]
[1736480693712,0.30807,3246.4,3246.2,0.30809]
[1736480693914,0.30807,3246.4,3246.3,0.9083]
[1736480694111,0.30807,3246.5,3246.3,0.9083]
[1736480694511,0.30807,3246.5,3246.3,1.21638]
[1736480696616,5.56717031,3246.7,3246.4,0.30807]
[1736480696820,5.87522031,3246.7,3246.5,0.4737]
[1736480697026,5.56717031,3246.7,3246.5,0.4737]
[1736480697326,0.30806,3246.6,3246.5,0.4737]
[1736480704832,0.30806,3246.6,3246.3,0.9083]
[1736480704833,0.30807,3246.4,3246.3,0.9083]
[1736480705033,2.22894031,3246.4,3246.3,0.4378]
[1736480706731,0.3081,3246.1,3246.0,3.2078]
[1736480706935,0.30814,3245.7,3245.6,3.2078]
[1736480707131,3.6797,3246.3,3245.2,3.2078]
[1736480707132,1.92087031,3245.8,3245.2,3.2078]
[1736480707331,0.30818,3245.4,3245.0,0.30821]
[1736480707631,0.30818,3245.3,3244.9,1.21951]
[1736480707829,1.92087031,3245.5,3244.9,1.21951]
[1736480708032,0.30819,3245.2,3245.0,40.8]
[1736480708233,0.30819,3245.2,3245.0,41.2775]
[1736480709534,0.445,3245.4,3245.0,41.2775]
[1736480709734,0.3082,3245.1,3245.0,41.2775]
[1736480710550,1.92087031,3245.1,3245.0,0.4775]
[1736480710727,0.30822,3244.9,3244.8,3.2078]
[1736480710923,0.30824,3244.7,3244.4,3.51606]
[1736480711126,2.22910031,3244.8,3244.5,41.10825]
[1736480711324,0.30823,3244.9,3244.6,0.30824]
[1736480711627,0.9166,3245.4,3244.5,40.8]
[1736480711628,2.36587031,3245.4,3244.5,40.8]
[1736480711931,3.2078,3245.5,3245.4,0.30817]
[1736480712527,3.2078,3245.5,3245.3,0.30817]
[1736480712832,3.2078,3245.5,3245.4,40.8]
[1736480713229,0.30813,3245.8,3245.5,0.30816]
[1736480713436,3.2078,3246.1,3245.5,0.4355]
[1736480713735,3.2078,3246.1,3245.9,0.30812]
[1736480714032,2.36617031,3246.3,3245.6,4.1289]
[1736480714335,1.92087031,3246.3,3246.2,0.30809]
[1736480714834,1.92087031,3246.3,3246.1,0.3081]
[1736480715034,1.92087031,3246.3,3246.2,0.4355]
[1736480715837,1.92087031,3246.3,3246.2,0.74359]
[1736480716734,5.43673031,3246.6,3246.2,0.74359]
[1736480717129,0.30807,3246.5,3246.2,0.4355]
[1736480717335,5.12867031,3246.6,3246.0,3.2078]
[1736480717538,0.30809,3246.2,3246.0,3.2078]
[1736480718638,0.30809,3246.2,3245.9,0.30812]
[1736480718937,5.43673031,3246.6,3246.2,0.30808]
[1736480719136,0.30807,3246.5,3246.3,0.4628]
[1736480719334,5.12867031,3246.6,3246.3,0.4628]
[1736480719532,5.43673031,3246.6,3246.3,0.4628]
[1736480720432,5.12867031,3246.6,3246.3,0.4628]
[1736480720632,5.12867031,3246.6,3246.4,0.30807]
[1736480721028,5.12867031,3246.6,3246.3,0.4628]
[1736480721229,5.12867031,3246.6,3246.3,0.77088]
[1736480722333,0.30807,3246.5,3246.3,0.4628]
[1736480723041,5.12867031,3246.6,3246.3,0.4628]
[1736480723340,0.30807,3246.4,3246.3,0.4628]
[1736480723531,5.12867031,3246.6,3246.3,0.4628]
[1736480723836,0.30807,3246.5,3246.3,0.4628]
[1736480725439,1.92087031,3246.6,3246.3,0.4628]
[1736480725633,1.92087031,3246.6,3246.3,0.77088]
[1736480726339,2.22893031,3246.6,3246.3,0.4628]
[1736480726840,2.22893031,3246.6,3246.3,0.77088]
[1736480727036,1.92087031,3246.6,3246.3,0.4628]
[1736480727333,1.92087031,3246.6,3246.3,0.77088]
[1736480727537,2.22893031,3246.6,3246.3,0.77088]
[1736480729236,0.30807,3246.5,3246.3,0.4628]
[1736480732042,0.30807,3246.4,3246.3,0.4628]
[1736480732543,0.30807,3246.5,3246.3,0.4628]
[1736480733644,2.22893031,3246.6,3246.3,0.77088]
[1736480733848,0.30807,3246.5,3246.3,0.4628]
[1736480739341,1.92087031,3246.6,3246.3,0.4628]
[1736480739545,0.30807,3246.4,3246.3,0.4628]
[1736480741346,0.30807,3246.5,3246.3,0.4628]
[1736480741548,1.92087031,3246.6,3246.3,0.4628]
[1736480741747,0.30807,3246.4,3246.3,0.4628]
[1736480742248,0.77564,3246.8,3246.6,0.30806]
[1736480742446,3.2078,3247.1,3246.4,2.84417031]
[1736480742751,1.18828,3247.5,3247.1,0.30801]
[1736480742941,1.18827,3247.5,3247.1,40.8]
[1736480743144,1.18827,3247.5,3247.2,0.30799]
[1736480743548,0.8803,3247.5,3247.1,40.8]
[1736480743754,0.308,3247.2,3247.1,40.8]
[1736480744550,0.30798,3247.4,3246.9,3.2078]
[1736480744747,0.30802,3247.0,3246.9,3.2078]
[1736480745050,1.92087031,3247.2,3246.3,0.4633]
[1736480745051,0.30807,3246.4,3246.3,0.4633]
[1736480745254,0.30807,3246.5,3246.3,0.4633]
[1736480745447,1.92087031,3246.6,3246.3,0.77138]
[1736480745448,0.30806,3246.6,3246.3,0.77138]
[1736480745751,3.51585,3246.7,3246.4,0.30807]
[1736480748858,0.30805,3246.7,3246.4,0.30807]
[1736480749053,5.12867031,3247.5,3246.3,0.4633]
[1736480749253,0.308,3247.3,3247.0,0.30801]
[1736480749454,0.308,3247.3,3247.1,0.4486]
[1736480750249,5.12867031,3247.5,3247.1,0.4486]
[1736480750456,0.308,3247.2,3247.1,0.4486]
[1736480751157,0.308,3247.2,3246.9,0.30802]
[1736480752658,5.12867031,3247.5,3246.7,0.4499]
[1736480752957,3.6588,3247.1,3246.7,0.4499]
[1736480753159,3.2078,3247.5,3246.9,3.2078]
[1736480753664,3.2078,3247.5,3247.0,0.30802]
[1736480753855,3.2078,3247.5,3247.3,0.30798]
[1736480754051,3.2078,3247.5,3246.9,3.2078]
[1736480754052,0.76066,3247.6,3247.4,1.3648]
[1736480754666,3.2078,3247.9,3247.4,1.3648]
[1736480754667,3.2078,3247.9,3247.6,0.30795]
[1736480754962,3.2078,3247.9,3247.4,1.3648]
[1736480754963,0.74703,3248.0,3247.7,0.30794]
[1736480755569,0.4391,3248.0,3247.7,0.30794]
[1736480755869,0.74702,3248.0,3247.7,0.30794]
[1736480756457,0.4391,3248.0,3247.5,40.8]
[1736480756959,5.43657031,3248.3,3247.5,40.8]
[1736480757166,3.2078,3248.3,3248.1,0.30791]
[1736480757965,0.4469,3248.4,3248.1,0.30791]
[1736480758158,0.4469,3248.4,3248.2,0.4633]
[1736480758463,0.75479,3248.4,3248.2,0.4633]
[1736480759362,0.30789,3248.3,3248.2,0.4633]
[1736480760867,0.30791,3248.2,3247.8,0.30794]
[1736480761064,0.30791,3248.2,3247.8,0.76174]
[1736480761263,0.75479,3248.4,3247.9,0.30793]
[1736480761865,0.30789,3248.3,3247.8,0.76174]
[1736480762068,2.22876031,3248.3,3247.9,0.30793]
[1736480763768,1.92087031,3248.3,3247.8,0.4538]
[1736480763972,2.22877031,3248.3,3247.9,0.30793]
[1736480765377,0.75479,3248.4,3248.0,0.30792]
[1736480765574,0.3079,3248.3,3248.1,0.4603]
[1736480765974,0.4469,3248.4,3248.1,0.76821]
[1736480766480,0.75479,3248.4,3248.1,0.76821]
[1736480766977,0.4469,3248.4,3248.1,0.4603]
[1736480767174,0.3079,3248.3,3248.1,0.4603]
[1736480767570,0.75479,3248.4,3248.1,0.4603]
[1736480768577,0.30789,3248.3,3248.1,0.4603]
[1736480768978,0.4469,3248.4,3248.2,0.3079]
[1736480769282,3.51568,3248.5,3248.1,0.4603]
[1736480769283,3.2078,3248.5,3248.3,0.30789]
[1736480769677,3.2078,3248.5,3248.4,0.4721]
[1736480769981,3.51568,3248.5,3248.4,0.4721]
[1736480770179,0.30789,3248.4,3248.1,0.76821]
[1736480770477,0.454,3248.4,3247.9,0.9309]
[1736480770684,1.92087031,3248.3,3247.9,0.4721]
[1736480770889,0.30792,3248.0,3247.9,0.4721]
[1736480771087,0.30792,3248.1,3247.9,0.4721]
[1736480772385,1.92087031,3248.0,3247.6,0.4492]
[1736480772685,0.30795,3247.7,3247.6,0.4492]
[1736480772886,3.6454,3247.9,3247.6,0.4492]
[1736480773088,0.30795,3247.8,3247.6,0.4492]
[1736480774384,3.6454,3247.9,3247.6,0.4492]
[1736480774582,3.6454,3247.9,3247.4,40.8]
[1736480774583,0.30797,3247.5,3247.4,40.8]
[1736480775892,0.30799,3247.4,3247.1,1.3685]
[1736480776188,0.74849,3247.4,3247.1,1.3685]
[1736480776387,0.74849,3247.4,3247.2,40.8]
[1736480776584,0.30799,3247.3,3247.1,1.3685]
[1736480776985,0.4405,3247.4,3247.1,1.3685]
[1736480777179,0.74848,3247.4,3247.1,1.3685]
[1736480778390,0.4405,3247.4,3247.1,1.3685]
[1736480778786,0.74849,3247.4,3247.1,1.3685]
[1736480779684,0.30799,3247.3,3247.1,1.3685]
[1736480781195,0.74848,3247.4,3247.1,1.3685]
[1736480782391,0.4405,3247.4,3247.1,1.3685]
[1736480782593,0.30799,3247.3,3247.1,1.3685]
[1736480782781,0.4405,3247.4,3247.1,1.3685]
[1736480782981,0.74848,3247.4,3247.1,1.3685]
[1736480783181,0.4405,3247.4,3247.1,1.3685]
[1736480783388,0.4405,3247.4,3247.1,1.6765]
[1736480783686,0.4405,3247.4,3247.1,1.3685]
[1736480783892,0.74849,3247.4,3247.1,1.3685]
[1736480784092,0.4405,3247.4,3247.1,1.3685]
[1736480784394,0.74849,3247.4,3247.1,1.3685]
[1736480784891,0.30799,3247.3,3247.1,1.3685]
[1736480785085,2.66936031,3247.4,3247.1,1.3685]
[1736480785287,2.36137031,3247.4,3247.1,1.3685]
[1736480785483,0.4405,3247.4,3247.1,1.6765]
[1736480785684,0.74848,3247.4,3247.1,1.6765]
[1736480786087,3.2078,3247.7,3247.3,0.30799]
[1736480786288,3.2078,3247.7,3247.4,0.30797]
[1736480786486,3.2078,3247.7,3247.6,0.30796]
[1736480786994,0.30791,3248.2,3247.6,3.2078]
[1736480787291,3.2078,3248.4,3247.7,0.9412]
[1736480787486,3.2078,3248.4,3247.7,1.3882]
[1736480787795,0.3079,3248.3,3248.0,0.30792]
[1736480788293,3.2078,3248.4,3248.2,0.3079]
[1736480788493,3.2078,3248.4,3248.3,1.3882]
[1736480789186,0.30788,3248.5,3248.3,1.3882]
[1736480789187,3.2078,3248.8,3248.3,1.3882]
[1736480789391,12.0858508,3249.0,3248.4,3.2078]
[1736480789791,12.3936808,3249.0,3248.5,40.8]
[1736480789989,12.0858508,3249.0,3248.5,40.8]
[1736480790196,0.30783,3249.0,3248.6,0.30786]
[1736480790397,0.30783,3249.0,3248.7,0.30786]
[1736480790591,0.30783,3249.0,3248.5,40.8]
[1736480790798,0.30783,3249.0,3248.6,0.30786]
[1736480791900,0.30784,3248.9,3248.5,41.10787]
[1736480792091,0.30783,3249.0,3248.5,41.10787]
[1736480792297,0.30784,3248.9,3248.5,41.10787]
[1736480792497,1.92087031,3248.9,3248.5,0.30787]
[1736480793802,0.4729,3249.5,3248.8,3.2078]
[1736480794007,0.4729,3249.5,3249.3,0.3078]
[1736480794193,12.3936208,3249.7,3249.3,0.3078]
[1736480794393,12.3936208,3249.7,3248.9,1.316]
[1736480794592,5.60157031,3249.8,3249.5,0.30778]
[1736480794794,5.60157031,3249.8,3248.9,1.316]
[1736480794795,3.6807,3249.8,3248.9,1.316]
[1736480795001,3.6807,3249.8,3249.5,0.30777]
[1736480795194,3.6807,3249.8,3249.6,1.316]
[1736480796397,3.6807,3249.8,3249.6,1.62377]
[1736480796599,3.6807,3249.8,3249.7,0.30776]
[1736480796600,3.2078,3249.8,3249.7,0.30776]
[1736480796795,3.2078,3250.3,3249.7,1.92087031]
[1736480797205,3.2078,3250.3,3250.1,0.30772]
[1736480797506,3.2078,3250.3,3250.2,1.3603]
[1736480798594,0.4484,3250.8,3250.2,1.3603]
[1736480798595,3.2078,3250.8,3250.2,1.3603]
[1736480798798,12.0858508,3251.0,3250.9,0.30765]
[1736480799004,12.0858508,3251.6,3250.7,3.2078]